[Event "Live Chess"]
[Site "Chess.com"]
[Date "2023.05.21"]
[Round "-"]
[White "JoRoSaR"]
[Black "f4nomore"]
[Result "1-0"]
[WhiteElo "1677"]
[BlackElo "1389"]
[TimeControl "300"]
[EndTime "7:24:23 PDT"]
[Termination "JoRoSaR won by resignation"]

1. e4 {[%clk 0:04:59.9]} 1... g6 {[%clk 0:04:56]} 2. d4 {[%clk 0:04:57.5]} 2...
Bg7 {[%clk 0:04:52.4]} 3. Be3 {[%clk 0:04:57]} 3... d6 {[%clk 0:04:51.6]} 4. f4
{[%clk 0:04:56.4]} 4... Nc6 {[%clk 0:04:48.7]} 5. c3 {[%clk 0:04:55.4]} 5... Bd7
{[%clk 0:04:47.1]} 6. Nf3 {[%clk 0:04:54.6]} 6... Nf6 {[%clk 0:04:45.5]} 7. Bd3
{[%clk 0:04:54]} 7... Ng4 {[%clk 0:04:43.8]} 8. Qe2 {[%clk 0:04:51.8]} 8... Nxe3
{[%clk 0:04:42.6]} 9. Qxe3 {[%clk 0:04:51.7]} 9... O-O {[%clk 0:04:41.1]} 10.
O-O {[%clk 0:04:50.7]} 10... e5 {[%clk 0:04:37.6]} 11. d5 {[%clk 0:04:48.2]}
11... Ne7 {[%clk 0:04:35.4]} 12. Nbd2 {[%clk 0:04:43.8]} 12... c6 {[%clk
0:04:34.2]} 13. c4 {[%clk 0:04:42.7]} 13... cxd5 {[%clk 0:04:33.1]} 14. cxd5
{[%clk 0:04:40.9]} 14... a6 {[%clk 0:04:28.2]} 15. Rab1 {[%clk 0:04:39.7]} 15...
Qa5 {[%clk 0:04:21.3]} 16. a3 {[%clk 0:04:37.7]} 16... Bb5 {[%clk 0:04:13.8]}
17. g3 {[%clk 0:04:29.8]} 17... Bxd3 {[%clk 0:04:11.4]} 18. Qxd3 {[%clk
0:04:29.7]} 18... f5 {[%clk 0:04:07.8]} 19. b4 {[%clk 0:04:24.3]} 19... Qb6+
{[%clk 0:04:04.4]} 20. Kg2 {[%clk 0:04:23]} 20... fxe4 {[%clk 0:03:58.6]} 21.
Nxe4 {[%clk 0:04:21.8]} 21... Nf5 {[%clk 0:03:56.5]} 22. Rbe1 {[%clk 0:04:14.5]}
22... Rac8 {[%clk 0:03:51.5]} 23. Nfg5 {[%clk 0:04:12.8]} 23... Rfe8 {[%clk
0:03:46.6]} 24. Ne6 {[%clk 0:04:11.9]} 24... exf4 {[%clk 0:03:41.6]} 25. Rxf4
{[%clk 0:04:05.8]} 25... Qb5 {[%clk 0:03:28.7]} 26. Qxb5 {[%clk 0:04:02.1]}
26... axb5 {[%clk 0:03:26.8]} 27. g4 {[%clk 0:04:01.7]} 27... Rc2+ {[%clk
0:03:24.6]} 28. Kf3 {[%clk 0:03:56.8]} 28... Nh4+ {[%clk 0:03:19.7]} 29. Kg3
{[%clk 0:03:56.1]} 29... Be5 {[%clk 0:03:08.9]} 30. Kxh4 {[%clk 0:03:54.1]}
30... Bxf4 {[%clk 0:03:07.6]} 31. Nxf4 {[%clk 0:03:53]} 31... Rxh2+ {[%clk
0:02:59.5]} 32. Kg3 {[%clk 0:03:51.9]} 32... Rh6 {[%clk 0:02:46.8]} 33. Nf6+
{[%clk 0:03:50.9]} 33... Kg7 {[%clk 0:02:42]} 34. Nxe8+ {[%clk 0:03:50.8]} 34...
Kf8 {[%clk 0:02:32.2]} 35. Nxd6 {[%clk 0:03:50.7]} 35... g5 {[%clk 0:02:30.8]}
36. Ne6+ {[%clk 0:03:50]} 36... Ke7 {[%clk 0:02:28.2]} 37. Nf5+ {[%clk
0:03:49.2]} 37... Kd7 {[%clk 0:02:22.7]} 38. Nxh6 {[%clk 0:03:49.1]} 1-0

[Event "Live Chess"]
[Site "Chess.com"]
[Date "2023.05.21"]
[Round "-"]
[White "DRS44"]
[Black "BillythekidFellowes"]
[Result "0-1"]
[WhiteElo "1307"]
[BlackElo "2091"]
[TimeControl "300"]
[EndTime "7:24:25 PDT"]
[Termination "BillythekidFellowes won on time"]

1. d4 {[%clk 0:04:51.8]} 1... e5 {[%clk 0:04:58.7]} 2. dxe5 {[%clk 0:04:48.2]}
2... Nc6 {[%clk 0:04:58]} 3. Nf3 {[%clk 0:04:44.2]} 3... Qe7 {[%clk 0:04:56.7]}
4. e4 {[%clk 0:04:23.3]} 4... Nxe5 {[%clk 0:04:52.2]} 5. Bf4 {[%clk 0:04:19.2]}
5... Ng6 {[%clk 0:04:32.6]} 6. Bg3 {[%clk 0:04:12.9]} 6... Qb4+ {[%clk
0:04:17.3]} 7. c3 {[%clk 0:04:02.6]} 7... Qxb2 {[%clk 0:04:14.7]} 8. Nbd2 {[%clk
0:03:36.9]} 8... Bc5 {[%clk 0:04:00.7]} 9. Be2 {[%clk 0:03:10.6]} 9... Nf6
{[%clk 0:03:48.8]} 10. O-O {[%clk 0:03:03.7]} 10... O-O {[%clk 0:03:44.7]} 11.
e5 {[%clk 0:02:54.5]} 11... Nh5 {[%clk 0:03:31.9]} 12. Ne4 {[%clk 0:02:47.6]}
12... Bb6 {[%clk 0:03:14.1]} 13. Nfg5 {[%clk 0:02:25.7]} 13... Nhf4 {[%clk
0:03:11.3]} 14. Bf3 {[%clk 0:02:07.8]} 14... h6 {[%clk 0:03:00.1]} 15. Nh3
{[%clk 0:01:15.3]} 15... Nxh3+ {[%clk 0:02:55.4]} 16. gxh3 {[%clk 0:01:10.1]}
16... d5 {[%clk 0:02:55.3]} 17. Nd2 {[%clk 0:00:45.9]} 17... Bxh3 {[%clk
0:02:44.8]} 18. Bg2 {[%clk 0:00:35.8]} 18... Bxg2 {[%clk 0:02:40]} 19. Kxg2
{[%clk 0:00:28.1]} 19... Qxc3 {[%clk 0:02:35.1]} 20. Rc1 {[%clk 0:00:12.1]}
20... Qb4 {[%clk 0:02:28.1]} 0-1

[Event "Live Chess"]
[Site "Chess.com"]
[Date "2023.05.21"]
[Round "-"]
[White "grillage"]
[Black "BearFromUkraine"]
[Result "1-0"]
[WhiteElo "1779"]
[BlackElo "1072"]
[TimeControl "300"]
[EndTime "7:24:25 PDT"]
[Termination "grillage won by checkmate"]

1. d4 {[%clk 0:04:59]} 1... d5 {[%clk 0:04:57.2]} 2. Nc3 {[%clk 0:04:57.1]} 2...
Nf6 {[%clk 0:04:55.3]} 3. Bf4 {[%clk 0:04:55.6]} 3... a6 {[%clk 0:04:53.5]} 4.
e3 {[%clk 0:04:53.1]} 4... e6 {[%clk 0:04:50.7]} 5. Nf3 {[%clk 0:04:52.5]} 5...
Bd6 {[%clk 0:04:46.6]} 6. Bd3 {[%clk 0:04:48.4]} 6... Bxf4 {[%clk 0:04:43.7]} 7.
exf4 {[%clk 0:04:47.7]} 7... O-O {[%clk 0:04:43]} 8. Ne5 {[%clk 0:04:46.4]} 8...
Nbd7 {[%clk 0:04:38.1]} 9. O-O {[%clk 0:04:44.9]} 9... Nxe5 {[%clk 0:04:35.2]}
10. fxe5 {[%clk 0:04:44.2]} 10... Nd7 {[%clk 0:04:32.5]} 11. Qh5 {[%clk
0:04:43]} 11... h6 {[%clk 0:04:30.1]} 12. f4 {[%clk 0:04:36.9]} 12... Nb6 {[%clk
0:04:17.5]} 13. Rf3 {[%clk 0:04:35.2]} 13... f6 {[%clk 0:04:07.2]} 14. Rg3
{[%clk 0:04:20.7]} 14... Kh8 {[%clk 0:03:59.1]} 15. Rg6 {[%clk 0:04:08.3]} 15...
fxe5 {[%clk 0:03:53.5]} 16. Rxh6+ {[%clk 0:03:59.1]} 16... Kg8 {[%clk
0:03:39.3]} 17. Rh8# {[%clk 0:03:57.3]} 1-0

[Event "Live Chess"]
[Site "Chess.com"]
[Date "2023.05.21"]
[Round "-"]
[White "Biranidun"]
[Black "Olisingapore"]
[Result "1-0"]
[WhiteElo "2518"]
[BlackElo "1785"]
[TimeControl "300"]
[EndTime "7:24:36 PDT"]
[Termination "Biranidun won by resignation"]

1. e4 {[%clk 0:04:59.5]} 1... c5 {[%clk 0:04:59.2]} 2. Nf3 {[%clk 0:04:57.4]}
2... d6 {[%clk 0:04:58.7]} 3. d4 {[%clk 0:04:56.7]} 3... c4 {[%clk 0:04:58.6]}
4. Bxc4 {[%clk 0:04:55.6]} 4... Nf6 {[%clk 0:04:57.2]} 5. Nc3 {[%clk 0:04:54.6]}
5... Nc6 {[%clk 0:04:56.3]} 6. O-O {[%clk 0:04:53.7]} 6... g6 {[%clk 0:04:55.8]}
7. e5 {[%clk 0:04:51.9]} 7... Bg7 {[%clk 0:04:55.3]} 8. exf6 {[%clk 0:04:51.2]}
8... Bxf6 {[%clk 0:04:54]} 9. Bh6 {[%clk 0:04:50.3]} 9... Be6 {[%clk 0:04:52.3]}
10. d5 {[%clk 0:04:48.9]} 10... Bxd5 {[%clk 0:04:50]} 11. Nxd5 {[%clk 0:04:48]}
11... Ne5 {[%clk 0:04:49]} 12. Nxf6+ {[%clk 0:04:47.1]} 12... exf6 {[%clk
0:04:47.9]} 13. Bb5+ {[%clk 0:04:46.3]} 1-0

[Event "Live Chess"]
[Site "Chess.com"]
[Date "2023.05.21"]
[Round "-"]
[White "AMCWAML"]
[Black "SimpleHarmonic1"]
[Result "1-0"]
[WhiteElo "2258"]
[BlackElo "2045"]
[TimeControl "300"]
[EndTime "7:24:49 PDT"]
[Termination "AMCWAML won on time"]

1. Nf3 {[%clk 0:04:58.6]} 1... d6 {[%clk 0:04:38.8]} 2. g3 {[%clk 0:04:56.1]}
2... Nf6 {[%clk 0:04:37.7]} 3. Bg2 {[%clk 0:04:55.7]} 3... g6 {[%clk 0:04:37.1]}
4. O-O {[%clk 0:04:55.2]} 4... Bg7 {[%clk 0:04:34.5]} 5. c4 {[%clk 0:04:54.2]}
5... O-O {[%clk 0:04:34.2]} 6. Nc3 {[%clk 0:04:53.8]} 6... Nc6 {[%clk
0:04:33.6]} 7. d4 {[%clk 0:04:52.9]} 7... a6 {[%clk 0:04:33.2]} 8. d5 {[%clk
0:04:51.2]} 8... Na5 {[%clk 0:04:31.3]} 9. b3 {[%clk 0:04:47]} 9... c5 {[%clk
0:03:48.7]} 10. Rb1 {[%clk 0:04:39.5]} 10... Bf5 {[%clk 0:03:36.5]} 11. Rb2
{[%clk 0:04:28]} 11... b5 {[%clk 0:03:35.6]} 12. Nd2 {[%clk 0:04:13.2]} 12... b4
{[%clk 0:03:26.7]} 13. Na4 {[%clk 0:04:10.1]} 13... Bd7 {[%clk 0:03:12.7]} 14.
e4 {[%clk 0:04:00.2]} 14... Bxa4 {[%clk 0:03:10.5]} 15. bxa4 {[%clk 0:03:59.4]}
15... Nd7 {[%clk 0:03:03]} 16. f4 {[%clk 0:03:53.1]} 16... Bd4+ {[%clk
0:02:59.4]} 17. Kh1 {[%clk 0:03:51.7]} 17... Bxb2 {[%clk 0:02:41.7]} 18. Bxb2
{[%clk 0:03:51.6]} 18... Nb6 {[%clk 0:02:30.5]} 19. Qe2 {[%clk 0:03:46.7]} 19...
Nxa4 {[%clk 0:02:24.7]} 20. Ba1 {[%clk 0:03:45.2]} 20... Qd7 {[%clk 0:02:00.5]}
21. e5 {[%clk 0:03:42.5]} 21... f5 {[%clk 0:01:47.7]} 22. exd6 {[%clk
0:03:10.9]} 22... exd6 {[%clk 0:01:43.4]} 23. Qe6+ {[%clk 0:03:09.6]} 23... Qxe6
{[%clk 0:01:41]} 24. dxe6 {[%clk 0:03:08.7]} 24... Rae8 {[%clk 0:01:39.9]} 25.
Re1 {[%clk 0:03:03]} 25... Nb6 {[%clk 0:01:22.9]} 26. h4 {[%clk 0:02:46.5]}
26... h5 {[%clk 0:01:15.2]} 27. Kh2 {[%clk 0:02:27.5]} 27... Kh7 {[%clk
0:01:10.3]} 28. Nf3 {[%clk 0:02:25]} 28... Re7 {[%clk 0:01:02.6]} 29. Ng5+
{[%clk 0:02:21.6]} 29... Kg8 {[%clk 0:00:58.2]} 30. g4 {[%clk 0:01:54.1]} 30...
hxg4 {[%clk 0:00:50.4]} 31. h5 {[%clk 0:01:50.9]} 31... gxh5 {[%clk 0:00:46.8]}
32. Kg3 {[%clk 0:01:50.1]} 32... Naxc4 {[%clk 0:00:41]} 33. Kh4 {[%clk
0:01:47.1]} 33... d5 {[%clk 0:00:27.6]} 34. Kxh5 {[%clk 0:01:44.1]} 34... d4
{[%clk 0:00:22]} 35. Kg6 {[%clk 0:01:38.4]} 35... Rg7+ {[%clk 0:00:19]} 36. Kh5
{[%clk 0:01:36.8]} 36... Nc8 {[%clk 0:00:13.6]} 37. Bd5 {[%clk 0:01:31.8]} 37...
Ne7 {[%clk 0:00:07.7]} 38. Bxc4 {[%clk 0:01:30.4]} 38... Rf6 {[%clk 0:00:06.1]}
39. Kh4 {[%clk 0:01:25.9]} 39... Rh6+ {[%clk 0:00:04.3]} 40. Kg3 {[%clk
0:01:25.4]} 40... Rh3+ {[%clk 0:00:04.1]} 41. Nxh3 {[%clk 0:01:24.6]} 41...
gxh3+ {[%clk 0:00:03.5]} 42. Kxh3 {[%clk 0:01:24.5]} 42... Ng6 {[%clk
0:00:01.8]} 43. e7+ {[%clk 0:01:20.2]} 43... Kh7 {[%clk 0:00:01.3]} 44. e8=Q
{[%clk 0:01:18.9]} 44... Nxf4+ {[%clk 0:00:01]} 45. Kh2 {[%clk 0:01:17.3]} 45...
Rg2+ {[%clk 0:00:00.2]} 46. Kh1 {[%clk 0:01:17.2]} 1-0

[Event "Live Chess"]
[Site "Chess.com"]
[Date "2023.05.21"]
[Round "-"]
[White "EdenHazard8"]
[Black "BJAW87"]
[Result "0-1"]
[WhiteElo "1942"]
[BlackElo "1464"]
[TimeControl "300"]
[EndTime "7:24:53 PDT"]
[Termination "BJAW87 won by resignation"]

1. e4 {[%clk 0:04:59.1]} 1... c6 {[%clk 0:04:59.3]} 2. d4 {[%clk 0:04:57.9]}
2... d5 {[%clk 0:04:58.8]} 3. e5 {[%clk 0:04:57.8]} 3... Bf5 {[%clk 0:04:57.8]}
4. h4 {[%clk 0:04:57.4]} 4... h5 {[%clk 0:04:56.7]} 5. Bd3 {[%clk 0:04:56.2]}
5... Bxd3 {[%clk 0:04:55.2]} 6. Qxd3 {[%clk 0:04:56.1]} 6... e6 {[%clk
0:04:54.4]} 7. Nf3 {[%clk 0:04:54.6]} 7... c5 {[%clk 0:04:53.2]} 8. c3 {[%clk
0:04:53.6]} 8... Nc6 {[%clk 0:04:52.2]} 9. Bg5 {[%clk 0:04:51.5]} 9... Qb6
{[%clk 0:04:50.2]} 10. b3 {[%clk 0:04:50.2]} 10... Nge7 {[%clk 0:04:49.4]} 11.
Nbd2 {[%clk 0:04:47.8]} 11... Nf5 {[%clk 0:04:48.1]} 12. Be3 {[%clk 0:04:45.4]}
12... Nxe3 {[%clk 0:04:37.3]} 13. fxe3 {[%clk 0:04:45.3]} 13... Be7 {[%clk
0:04:32.5]} 14. O-O {[%clk 0:04:41.2]} 14... O-O {[%clk 0:04:31.3]} 15. Ng5
{[%clk 0:04:35.2]} 15... Bxg5 {[%clk 0:04:27.5]} 16. hxg5 {[%clk 0:04:35.1]}
16... Ne7 {[%clk 0:04:21.5]} 17. Rf3 {[%clk 0:04:28.3]} 17... Nf5 {[%clk
0:04:17]} 18. Rh3 {[%clk 0:04:26.2]} 18... g6 {[%clk 0:04:15.7]} 19. Rf1 {[%clk
0:04:23.3]} 19... a5 {[%clk 0:04:11.3]} 20. Qe2 {[%clk 0:04:20.7]} 20... a4
{[%clk 0:04:08.1]} 21. Rh1 {[%clk 0:04:15]} 21... axb3 {[%clk 0:04:03.3]} 22.
axb3 {[%clk 0:04:14]} 22... Ra2 {[%clk 0:03:57.5]} 23. g4 {[%clk 0:04:07.5]}
23... Ng3 {[%clk 0:03:56.5]} 24. Qh2 {[%clk 0:04:04]} 24... Nxf1 {[%clk
0:03:52.5]} 25. Kxf1 {[%clk 0:04:02.9]} 25... Kg7 {[%clk 0:03:45.6]} 26. gxh5
{[%clk 0:04:01.6]} 26... Rh8 {[%clk 0:03:42.8]} 27. h6+ {[%clk 0:03:59.6]} 27...
Kf8 {[%clk 0:03:40.8]} 28. h7 {[%clk 0:03:55.5]} 28... Qb5+ {[%clk 0:03:35.7]}
29. c4 {[%clk 0:03:54.4]} 29... dxc4 {[%clk 0:03:34.8]} 30. Qh6+ {[%clk
0:03:53.3]} 30... Ke7 {[%clk 0:03:18.5]} 31. Qxg6 {[%clk 0:03:52.2]} 31... fxg6
{[%clk 0:03:01.2]} 0-1

[Event "Live Chess"]
[Site "Chess.com"]
[Date "2023.05.21"]
[Round "-"]
[White "martynstanley"]
[Black "Doge_Dandolo"]
[Result "1-0"]
[WhiteElo "1030"]
[BlackElo "1876"]
[TimeControl "300"]
[EndTime "7:24:53 PDT"]
[Termination "martynstanley won by checkmate"]

1. d4 {[%clk 0:04:59.5]} 1... d5 {[%clk 0:04:55.4]} 2. e3 {[%clk 0:04:59]} 2...
Bf5 {[%clk 0:04:45.4]} 3. Bd3 {[%clk 0:04:57.9]} 3... Bxd3 {[%clk 0:04:41.5]} 4.
cxd3 {[%clk 0:04:56.9]} 4... c6 {[%clk 0:04:36]} 5. f4 {[%clk 0:04:55.8]} 5...
e6 {[%clk 0:04:34.3]} 6. Nf3 {[%clk 0:04:55]} 6... Bd6 {[%clk 0:04:32.3]} 7. Ne5
{[%clk 0:04:53.6]} 7... Nd7 {[%clk 0:04:30.3]} 8. O-O {[%clk 0:04:52.3]} 8...
Ne7 {[%clk 0:04:28.8]} 9. Qf3 {[%clk 0:04:50.6]} 9... Nf5 {[%clk 0:04:26.6]} 10.
Nd2 {[%clk 0:04:48.6]} 10... h5 {[%clk 0:04:24.4]} 11. e4 {[%clk 0:04:47.7]}
11... Nxd4 {[%clk 0:04:21.8]} 12. Qf2 {[%clk 0:04:43.4]} 12... Nxe5 {[%clk
0:04:17.6]} 13. fxe5 {[%clk 0:04:42.3]} 13... Bc5 {[%clk 0:04:15.8]} 14. Qxf7#
{[%clk 0:04:40.9]} 1-0

[Event "Live Chess"]
[Site "Chess.com"]
[Date "2023.05.21"]
[Round "-"]
[White "JoeRoot66"]
[Black "Vedant-1411"]
[Result "1-0"]
[WhiteElo "1903"]
[BlackElo "843"]
[TimeControl "300"]
[EndTime "7:24:54 PDT"]
[Termination "JoeRoot66 won by checkmate"]

1. e4 {[%clk 0:04:58.4]} 1... e5 {[%clk 0:04:56.2]} 2. Nc3 {[%clk 0:04:57.2]}
2... Nc6 {[%clk 0:04:55.6]} 3. Bc4 {[%clk 0:04:56.3]} 3... Nf6 {[%clk
0:04:52.9]} 4. d3 {[%clk 0:04:55.5]} 4... Bc5 {[%clk 0:04:51.8]} 5. f4 {[%clk
0:04:54.8]} 5... O-O {[%clk 0:04:50.4]} 6. Nf3 {[%clk 0:04:54.1]} 6... exf4
{[%clk 0:04:49.3]} 7. Bxf4 {[%clk 0:04:52.7]} 7... Bd6 {[%clk 0:04:48.6]} 8. e5
{[%clk 0:04:46.9]} 8... Nxe5 {[%clk 0:04:46.4]} 9. Bxe5 {[%clk 0:04:40.1]} 9...
Bxe5 {[%clk 0:04:45.6]} 10. Nxe5 {[%clk 0:04:40]} 10... Qe7 {[%clk 0:04:42.1]}
11. Qe2 {[%clk 0:04:36.2]} 11... d6 {[%clk 0:04:38.1]} 12. Nxf7 {[%clk
0:04:31.5]} 12... Qxe2+ {[%clk 0:04:35.1]} 13. Kxe2 {[%clk 0:04:30.3]} 13...
Bg4+ {[%clk 0:04:32.8]} 14. Kd2 {[%clk 0:04:28.4]} 14... Rxf7 {[%clk 0:04:26.8]}
15. Bxf7+ {[%clk 0:04:28.3]} 15... Kxf7 {[%clk 0:04:26]} 16. h3 {[%clk
0:04:27.7]} 16... Be6 {[%clk 0:04:23.5]} 17. Rhf1 {[%clk 0:04:26.3]} 17... Bd7
{[%clk 0:04:19.3]} 18. Ne4 {[%clk 0:04:25.1]} 18... Kg8 {[%clk 0:04:17.4]} 19.
Nxf6+ {[%clk 0:04:23.2]} 19... gxf6 {[%clk 0:04:16.4]} 20. Rxf6 {[%clk
0:04:23.1]} 20... Rf8 {[%clk 0:04:14.9]} 21. Rxf8+ {[%clk 0:04:21.6]} 21... Kxf8
{[%clk 0:04:13.5]} 22. Rf1+ {[%clk 0:04:21.3]} 22... Kg8 {[%clk 0:04:12.4]} 23.
Re1 {[%clk 0:04:21]} 23... Kf8 {[%clk 0:04:11.5]} 24. Re4 {[%clk 0:04:19.4]}
24... Kg8 {[%clk 0:04:10.4]} 25. Re7 {[%clk 0:04:18.2]} 25... Kf8 {[%clk
0:04:09.7]} 26. Rxd7 {[%clk 0:04:17.2]} 26... Kg8 {[%clk 0:04:09.1]} 27. Rxc7
{[%clk 0:04:16.6]} 27... Kf8 {[%clk 0:04:08.9]} 28. Rxb7 {[%clk 0:04:16.2]}
28... Ke8 {[%clk 0:04:07.3]} 29. Rxa7 {[%clk 0:04:16.1]} 29... Kf8 {[%clk
0:04:06.4]} 30. Ke3 {[%clk 0:04:15.7]} 30... Ke8 {[%clk 0:04:05.8]} 31. Kf4
{[%clk 0:04:15.6]} 31... Kf8 {[%clk 0:04:05.3]} 32. Kf5 {[%clk 0:04:15.5]} 32...
Ke8 {[%clk 0:04:04.9]} 33. Ke6 {[%clk 0:04:15.2]} 33... Kf8 {[%clk 0:04:03.6]}
34. Kf6 {[%clk 0:04:12.7]} 34... Kg8 {[%clk 0:04:03]} 35. Ra8# {[%clk
0:04:11.2]} 1-0

[Event "Live Chess"]
[Site "Chess.com"]
[Date "2023.05.21"]
[Round "-"]
[White "jimwad"]
[Black "stevochess11"]
[Result "0-1"]
[WhiteElo "1221"]
[BlackElo "1662"]
[TimeControl "300"]
[EndTime "7:25:07 PDT"]
[Termination "stevochess11 won by checkmate"]

1. d4 {[%clk 0:04:57.1]} 1... c6 {[%clk 0:04:59.9]} 2. e4 {[%clk 0:04:54.7]}
2... f6 {[%clk 0:04:59.8]} 3. Nf3 {[%clk 0:04:53]} 3... d5 {[%clk 0:04:59.7]} 4.
e5 {[%clk 0:04:51.7]} 4... e6 {[%clk 0:04:58.6]} 5. c3 {[%clk 0:04:49.2]} 5...
Nd7 {[%clk 0:04:57.6]} 6. Bf4 {[%clk 0:04:43.9]} 6... c5 {[%clk 0:04:56.3]} 7.
Nbd2 {[%clk 0:04:39]} 7... cxd4 {[%clk 0:04:54.3]} 8. cxd4 {[%clk 0:04:37.8]}
8... Bb4 {[%clk 0:04:51.6]} 9. Bb5 {[%clk 0:04:35.6]} 9... Qa5 {[%clk
0:04:47.2]} 10. Bxd7+ {[%clk 0:04:29.2]} 10... Bxd7 {[%clk 0:04:44.9]} 11. O-O
{[%clk 0:04:27.6]} 11... Bxd2 {[%clk 0:04:42.7]} 12. Qxd2 {[%clk 0:04:25]} 12...
Qxd2 {[%clk 0:04:41.1]} 13. Bxd2 {[%clk 0:04:20.5]} 13... fxe5 {[%clk 0:04:41]}
14. Nxe5 {[%clk 0:04:17.8]} 14... Nf6 {[%clk 0:04:38.5]} 15. Rac1 {[%clk
0:04:13.2]} 15... O-O {[%clk 0:04:36.7]} 16. Rc7 {[%clk 0:04:10.8]} 16... Bc6
{[%clk 0:04:33.4]} 17. Nxc6 {[%clk 0:04:09.3]} 17... bxc6 {[%clk 0:04:33]} 18.
Rxc6 {[%clk 0:04:08.3]} 18... Rab8 {[%clk 0:04:32]} 19. b3 {[%clk 0:04:06.3]}
19... Ne4 {[%clk 0:04:30.1]} 20. Be3 {[%clk 0:04:04.1]} 20... Rb6 {[%clk
0:04:25.4]} 21. Rxb6 {[%clk 0:03:56]} 21... axb6 {[%clk 0:04:25.3]} 22. Rc1
{[%clk 0:03:54.4]} 22... Ra8 {[%clk 0:04:18.3]} 23. a4 {[%clk 0:03:52.9]} 23...
b5 {[%clk 0:04:11.1]} 24. axb5 {[%clk 0:03:50.4]} 24... Rb8 {[%clk 0:04:10.4]}
25. f3 {[%clk 0:03:40]} 25... Nd6 {[%clk 0:04:04.2]} 26. Rc6 {[%clk 0:03:33.6]}
26... Nxb5 {[%clk 0:03:59.2]} 27. Rxe6 {[%clk 0:03:32]} 27... Nc3 {[%clk
0:03:57.8]} 28. Bf4 {[%clk 0:03:21.1]} 28... Rxb3 {[%clk 0:03:55.9]} 29. Re8+
{[%clk 0:03:18.4]} 29... Kf7 {[%clk 0:03:54.3]} 30. Rc8 {[%clk 0:03:16.7]} 30...
Ne2+ {[%clk 0:03:51.3]} 31. Kf2 {[%clk 0:03:15.5]} 31... Nxf4 {[%clk 0:03:50.5]}
32. Kg3 {[%clk 0:03:10.2]} 32... g5 {[%clk 0:03:47.8]} 33. h4 {[%clk 0:03:07.8]}
33... h6 {[%clk 0:03:43.7]} 34. hxg5 {[%clk 0:03:06.5]} 34... hxg5 {[%clk
0:03:42.9]} 35. Rc7+ {[%clk 0:03:05.1]} 35... Kf6 {[%clk 0:03:40.9]} 36. Rc6+
{[%clk 0:03:03]} 36... Kf5 {[%clk 0:03:39]} 37. Rc8 {[%clk 0:02:56.7]} 37... Rb2
{[%clk 0:03:34.9]} 38. Rf8+ {[%clk 0:02:54.5]} 38... Kg6 {[%clk 0:03:33.9]} 39.
Rg8+ {[%clk 0:02:49.9]} 39... Kf6 {[%clk 0:03:25.9]} 40. Rf8+ {[%clk 0:02:47.7]}
40... Kg7 {[%clk 0:03:24.6]} 41. Rf5 {[%clk 0:02:46]} 41... Rxg2# {[%clk
0:03:23.1]} 0-1

[Event "Live Chess"]
[Site "Chess.com"]
[Date "2023.05.21"]
[Round "-"]
[White "wot-not"]
[Black "LiamBellwood"]
[Result "0-1"]
[WhiteElo "1534"]
[BlackElo "1907"]
[TimeControl "300"]
[EndTime "7:25:17 PDT"]
[Termination "LiamBellwood won by resignation"]

1. e4 {[%clk 0:04:55.9]} 1... e6 {[%clk 0:04:59.9]} 2. f4 {[%clk 0:04:54.9]}
2... d5 {[%clk 0:04:59.4]} 3. e5 {[%clk 0:04:53.6]} 3... c5 {[%clk 0:04:59.1]}
4. Nf3 {[%clk 0:04:53.2]} 4... Nc6 {[%clk 0:04:59]} 5. d4 {[%clk 0:04:52.8]}
5... Nh6 {[%clk 0:04:58.2]} 6. Bd3 {[%clk 0:04:52.4]} 6... Nf5 {[%clk
0:04:57.8]} 7. Bxf5 {[%clk 0:04:51.6]} 7... exf5 {[%clk 0:04:57.7]} 8. O-O
{[%clk 0:04:50.9]} 8... Be6 {[%clk 0:04:57.2]} 9. Be3 {[%clk 0:04:46.4]} 9...
Qb6 {[%clk 0:04:56.1]} 10. dxc5 {[%clk 0:04:38.5]} 10... Bxc5 {[%clk 0:04:56]}
11. Bxc5 {[%clk 0:04:35.7]} 11... Qxc5+ {[%clk 0:04:55.9]} 12. Kh1 {[%clk
0:04:35.1]} 12... O-O {[%clk 0:04:54.6]} 13. Nbd2 {[%clk 0:04:33.2]} 13... Rac8
{[%clk 0:04:46.2]} 14. c3 {[%clk 0:04:31.2]} 14... Rfd8 {[%clk 0:04:41.7]} 15.
Ng5 {[%clk 0:04:27.2]} 15... d4 {[%clk 0:04:34.5]} 16. Nb3 {[%clk 0:04:20.8]}
16... Bxb3 {[%clk 0:04:31.5]} 17. axb3 {[%clk 0:04:15.8]} 17... dxc3 {[%clk
0:04:29.7]} 18. bxc3 {[%clk 0:04:12.8]} 18... Rxd1 {[%clk 0:04:27.9]} 0-1

[Event "Live Chess"]
[Site "Chess.com"]
[Date "2023.05.21"]
[Round "-"]
[White "Hacker_2009"]
[Black "Crowded_House"]
[Result "1-0"]
[WhiteElo "1954"]
[BlackElo "1603"]
[TimeControl "300"]
[EndTime "7:25:20 PDT"]
[Termination "Hacker_2009 won by resignation"]

1. d4 {[%clk 0:04:58.7]} 1... d5 {[%clk 0:04:55.5]} 2. Nf3 {[%clk 0:04:57.7]}
2... e6 {[%clk 0:04:52.4]} 3. e3 {[%clk 0:04:56.6]} 3... c5 {[%clk 0:04:51.4]}
4. c4 {[%clk 0:04:55.3]} 4... dxc4 {[%clk 0:04:48.7]} 5. Bxc4 {[%clk 0:04:52.6]}
5... cxd4 {[%clk 0:04:40.9]} 6. Nxd4 {[%clk 0:04:51.1]} 6... Bb4+ {[%clk
0:04:39.7]} 7. Bd2 {[%clk 0:04:49.4]} 7... Bxd2+ {[%clk 0:04:38.1]} 8. Qxd2
{[%clk 0:04:48.5]} 8... Nf6 {[%clk 0:04:35.4]} 9. Nc3 {[%clk 0:04:46.8]} 9... a6
{[%clk 0:04:33]} 10. O-O {[%clk 0:04:45.2]} 10... O-O {[%clk 0:04:31.8]} 11.
Rfd1 {[%clk 0:04:41.5]} 11... Qc7 {[%clk 0:04:27.8]} 12. Be2 {[%clk 0:04:38.5]}
12... Nc6 {[%clk 0:04:23.9]} 13. Nxc6 {[%clk 0:04:35.4]} 13... Qxc6 {[%clk
0:04:22.3]} 14. Bf3 {[%clk 0:04:35]} 14... Qc7 {[%clk 0:04:14.1]} 15. Rac1
{[%clk 0:04:33.6]} 15... Qe7 {[%clk 0:04:10]} 16. h3 {[%clk 0:04:21.8]} 16...
Rb8 {[%clk 0:04:09]} 17. e4 {[%clk 0:04:18.2]} 17... Qd7 {[%clk 0:04:07.7]} 18.
Qf4 {[%clk 0:04:16.2]} 18... Qxd1+ {[%clk 0:03:42.1]} 19. Rxd1 {[%clk
0:04:13.4]} 19... Bd7 {[%clk 0:03:40.3]} 20. e5 {[%clk 0:04:11.8]} 20... Nd5
{[%clk 0:03:32.9]} 21. Nxd5 {[%clk 0:04:09.7]} 21... exd5 {[%clk 0:03:32.6]} 22.
Bxd5 {[%clk 0:04:08.3]} 22... Be6 {[%clk 0:03:30.3]} 23. Bxe6 {[%clk 0:04:07]}
23... fxe6 {[%clk 0:03:29.4]} 24. Qd4 {[%clk 0:04:06.3]} 24... Rfe8 {[%clk
0:03:18.5]} 25. Qd7 {[%clk 0:04:02.7]} 25... h6 {[%clk 0:03:14.9]} 26. Qc7
{[%clk 0:04:00.8]} 26... Rf8 {[%clk 0:03:12.2]} 27. Rd7 {[%clk 0:03:59.2]} 1-0